bitfinex/quotes_SOLUSD_20220216
["timestamp","ask_amount","ask_price","bid_price","bid_amount"]
[1645008336992,42.37684888,102.1,102.07,14.6921]
[1645008338093,43.74062691,102.1,102.07,14.6921]
[1645008338793,43.74062691,102.1,102.06,39.2017]
[1645008339494,43.74062691,102.1,102.06,14.6947]
[1645008343019,43.74062691,102.1,102.05,14.6957]
[1645008343216,43.74062691,102.1,102.04,24.2419]
[1645008343217,58.43732691,102.1,102.04,24.2419]
[1645008343420,34.49147586,102.08,102.03,2.15773112]
[1645008343819,34.49147586,102.08,102.02,24.5543]
[1645008344024,35.85525389,102.08,102.02,24.5543]
[1645008344320,50.55515389,102.08,102.01,14.7013]
[1645008344720,58.70015389,102.08,102.01,14.7013]
[1645008344926,58.70015389,102.08,102.0,50.0]
[1645008346323,50.55515389,102.08,102.0,50.0]
[1645008346723,75.45065389,102.08,102.0,50.0]
[1645008346928,75.45065389,102.08,102.0,64.7028]
[1645008348126,75.45065389,102.08,102.01,35.46672592]
[1645008348325,75.45065389,102.08,102.02,14.7001]
[1645008348926,74.08687586,102.08,102.02,14.7001]
[1645008349127,75.45065389,102.08,102.02,14.7001]
[1645008349329,74.08687586,102.08,102.02,14.7001]
[1645008350030,75.45065389,102.08,102.02,14.7001]
[1645008350928,74.08687586,102.08,102.02,14.7001]
[1645008351329,74.08687586,102.08,102.01,38.2308]
[1645008351529,75.45065389,102.08,102.01,38.2308]
[1645008353032,75.45065389,102.08,102.01,14.7016]
[1645008356739,74.95065389,102.08,102.01,14.7016]
[1645008358141,74.95065389,102.08,102.02,34.94850009]
[1645008358345,58.88697586,102.08,102.03,14.6984]
[1645008359848,33.99147586,102.08,102.03,14.6984]
[1645008363680,48.69137586,102.08,102.03,14.6984]
[1645008367382,48.69137586,102.08,102.03,60.43696053]
[1645008367586,33.99147586,102.08,102.03,157.76696053]
[1645008367783,24.30097803,102.1,102.03,157.76696053]
[1645008368182,22.9372,102.1,102.03,159.92767018]
[1645008368782,45.33581077,102.09,102.03,159.92767018]
[1645008377688,45.33581077,102.09,102.03,114.18910965]
[1645008377890,45.33581077,102.09,102.03,137.04110965]
[1645008378090,45.33581077,102.09,102.03,134.8804]
[1645008378693,45.33581077,102.09,102.03,172.34443551]
[1645008382098,1.36377803,102.11,102.03,186.50443551]
[1645008382298,26.31222067,102.12,102.03,188.66514516]
[1645008382701,24.94844264,102.12,102.05,97.33]
[1645008382898,0.55144264,102.12,102.08,97.33]
[1645008383099,49.2955427,102.12,102.08,97.33]
[1645008383300,49.2955427,102.12,102.08,2.16070965]
[1645008383500,49.2955427,102.12,102.06,16.32070965]
[1645008383999,49.2955427,102.12,102.06,14.16]
[1645008384398,49.2955427,102.12,102.06,58.24317914]
[1645008384798,49.2955427,102.12,102.09,14.6892]
[1645008387108,49.2955427,102.12,102.1,3.03219997]
[1645008390105,49.2955427,102.12,102.09,14.6892]
[1645008390709,49.2955427,102.12,102.1,3.03219997]
[1645008391108,49.2955427,102.12,102.09,14.6892]
[1645008391508,49.2955427,102.12,102.09,3.9943068]
[1645008391708,49.2955427,102.12,102.08,14.693]
[1645008391910,49.2955427,102.12,102.05,48.9775]
[1645008392810,63.9895427,102.12,102.07,14.6948]
[1645008396941,63.9895427,102.12,102.06,14.6955]
[1645008398542,63.9895427,102.12,102.06,48.89933632]
[1645008398743,49.2955427,102.12,102.06,48.89933632]
[1645008398942,72.1970427,102.12,102.06,48.89933632]
[1645008400944,72.1970427,102.12,102.06,14.6955]
[1645008402445,72.1970427,102.12,102.06,57.06948844]
[1645008403149,72.1970427,102.12,102.06,14.6955]
[1645008404446,72.1970427,102.12,102.06,59.54372787]
[1645008405946,72.1970427,102.12,102.06,14.6955]
[1645008406847,72.1970427,102.12,102.06,55.91662864]
[1645008407247,72.1970427,102.12,102.06,14.6955]
[1645008408249,72.1970427,102.12,102.06,54.3128261]
[1645008408447,72.1970427,102.12,102.06,14.6955]
[1645008409749,86.8910427,102.12,102.06,14.6955]
[1645008409948,86.3910427,102.12,102.06,14.6955]
[1645008413650,87.75482073,102.12,102.06,14.6955]
[1645008414956,71.6970427,102.12,102.06,14.6955]
[1645008415957,71.64560006,102.12,102.06,14.6955]
[1645008421164,71.64560006,102.12,102.07,0.37094953]
[1645008421386,71.64560006,102.12,102.08,14.693]
[1645008424072,71.64560006,102.12,102.07,15.06554953]
[1645008424267,71.64560006,102.12,102.09,0.37094953]
[1645008424468,1.36377803,102.11,102.09,0.37094953]
[1645008424667,97.33,102.1,102.02,11.61905988]
[1645008424871,142.20847803,102.1,102.01,23.1371]
[1645008425072,4.899,102.09,102.01,23.1371]
[1645008425268,1.36377803,102.09,102.01,37.8387]
[1645008425671,14.7015,102.07,102.01,60.71403904]
[1645008425871,36.49536813,102.06,102.01,60.71403904]
[1645008426071,36.49536813,102.06,102.01,14.7016]
[1645008430900,36.49536813,102.06,102.02,48.57409866]
[1645008431103,36.49536813,102.06,102.02,63.27379866]
[1645008431301,36.49536813,102.06,102.02,14.6997]
[1645008441912,36.49536813,102.06,102.01,14.7018]
[1645008443612,36.49536813,102.06,102.01,54.50687746]
[1645008444813,36.49536813,102.06,102.01,14.7018]
[1645008446218,36.49536813,102.06,102.01,50.8138385]
[1645008449521,14.7012,102.07,102.01,50.8138385]
[1645008449720,38.6115,102.08,102.01,50.8138385]
[1645008450522,40.26362359,102.07,102.01,50.8138385]
[1645008450723,40.26362359,102.07,102.01,14.7018]
[1645008451122,54.96442359,102.07,102.01,14.7018]
[1645008451522,54.96442359,102.07,102.0,64.7033]
[1645008452127,54.96442359,102.07,102.01,47.28613865]
[1645008452729,40.26362359,102.07,102.01,61.98793865]
[1645008453326,40.26362359,102.07,102.01,86.95133865]
[1645008456159,40.26362359,102.07,102.01,184.28133865]
[1645008456561,40.26362359,102.07,102.01,86.95133865]
[1645008459063,23.9115,102.08,102.01,86.95133865]
[1645008459467,23.9115,102.08,102.01,184.28133865]
[1645008459763,23.9115,102.08,102.01,86.95133865]
[1645008460066,61.21706606,102.08,102.01,184.28133865]
[1645008460266,61.21706606,102.08,102.01,198.44133865]
[1645008460562,61.21706606,102.08,102.01,101.11133865]
[1645008464371,61.21706606,102.08,102.02,97.33]
[1645008464571,61.21706606,102.08,102.01,86.95133865]
[1645008468274,61.21706606,102.08,102.01,184.28133865]
[1645008468478,23.9115,102.08,102.01,184.28133865]
[1645008468976,23.9115,102.08,102.01,86.95133865]
[1645008469475,66.3056931,102.08,102.01,86.95133865]
[1645008471179,66.3056931,102.08,102.01,184.28133865]
[1645008471380,66.3056931,102.08,102.01,86.95133865]
[1645008471678,66.3056931,102.08,102.01,184.28133865]
[1645008471877,66.3056931,102.08,102.01,86.95133865]
[1645008473780,66.3056931,102.08,102.01,184.28133865]
[1645008474280,66.3056931,102.08,102.01,198.44133865]
[1645008474481,23.9115,102.08,102.01,198.44133865]
[1645008474883,23.9115,102.08,102.01,101.11133865]
[1645008475084,4.8045671,102.09,102.01,200.6081155]
[1645008476886,4.8045671,102.09,102.01,101.11133865]
[1645008477285,4.8045671,102.09,102.01,198.44133865]
[1645008477986,4.8045671,102.09,102.01,101.11133865]
[1645008478286,4.8045671,102.09,102.01,198.44133865]
[1645008479588,26.08197803,102.1,102.01,200.6081155]
[1645008479790,1.36377803,102.12,102.03,97.33]
[1645008479990,1.55324203,102.13,102.06,14.6913]
[1645008480395,47.97613025,102.13,102.07,45.0319239]
[1645008480992,47.97613025,102.13,102.06,23.3588]
[1645008481192,47.97613025,102.13,102.08,14.6914]
[1645008482524,46.61235222,102.13,102.08,14.6914]
[1645008482818,47.97613025,102.13,102.08,14.6914]
[1645008483127,46.61235222,102.13,102.08,14.6914]
[1645008483319,47.97613025,102.13,102.08,14.6914]
[1645008484117,62.66853025,102.13,102.08,14.6914]
[1645008484518,47.97613025,102.13,102.08,14.6914]
[1645008485120,46.61235222,102.13,102.04,107.293849]
[1645008485320,55.99312539,102.11,102.04,107.293849]
[1645008485519,55.99312539,102.11,102.04,93.133849]
[1645008485723,55.99312539,102.11,102.04,48.9794]
[1645008485920,57.35690342,102.11,102.04,48.9794]
[1645008486121,22.6802,102.1,102.05,14.697]
[1645008486928,46.42288822,102.09,102.05,14.697]
[1645008489326,61.12118822,102.09,102.04,14.6983]
[1645008491740,46.42288822,102.09,102.04,14.6983]
[1645008493827,61.12098822,102.09,102.04,14.6983]
[1645008495929,61.12098822,102.09,102.03,38.5722]
[1645008497830,61.12098822,102.09,102.04,45.16619143]
[1645008497831,46.42288822,102.09,102.04,45.16619143]
[1645008498033,1.36377803,102.11,102.05,14.6954]
[1645008498231,1.36377803,102.11,102.05,39.6739]
[1645008498433,24.82337803,102.12,102.05,39.6739]
[1645008498635,24.82337803,102.12,102.05,41.84073426]
[1645008499034,35.12786399,102.11,102.06,48.33983105]
[1645008499237,35.12786399,102.11,102.07,14.6924]
[1645008504041,35.12786399,102.11,102.07,61.87716339]
[1645008504541,35.12786399,102.11,102.07,14.6924]
[1645008509253,35.12786399,102.11,102.07,55.59076408]
[1645008511560,35.12786399,102.11,102.07,14.6924]
[1645008520456,35.12786399,102.11,102.07,156.07140629]
[1645008520855,35.12786399,102.11,102.07,58.74140629]
[1645008521258,35.12786399,102.11,102.07,156.07140629]
[1645008521456,24.436864,102.13,102.07,156.07140629]
[1645008522457,48.54462166,102.12,102.07,156.07140629]
[1645008523159,48.54462166,102.12,102.07,112.0224]
[1645008525360,48.54462166,102.12,102.07,14.6924]
[1645008530968,48.54462166,102.12,102.07,112.0224]
[1645008531167,48.54462166,102.12,102.07,14.6924]
[1645008532670,49.90839969,102.12,102.07,14.6924]
[1645008534074,64.60189969,102.12,102.07,14.6924]
[1645008534274,49.90839969,102.12,102.07,14.6924]
[1645008534475,48.54462166,102.12,102.07,14.6924]
[1645008549811,49.90839969,102.12,102.07,14.6924]
[1645008551614,49.90839969,102.12,102.07,147.89320854]
[1645008551813,25.80064203,102.13,102.07,150.0600428]
[1645008552015,24.436864,102.13,102.07,150.0600428]
[1645008552814,70.55015888,102.13,102.07,150.0600428]
[1645008554817,70.55015888,102.13,102.07,52.7300428]
[1645008555022,70.55015888,102.13,102.07,73.22750854]
[1645008559429,70.55015888,102.13,102.07,170.55750854]
[1645008559727,70.55015888,102.13,102.07,73.22750854]
[1645008560131,70.55015888,102.13,102.07,75.3943428]
[1645008560628,70.55015888,102.13,102.08,97.33]
[1645008560832,70.55015888,102.13,102.09,14.6895]
[1645008561533,24.436864,102.13,102.09,52.11575176]
[1645008561732,24.436864,102.13,102.09,149.44575176]
[1645008561933,24.436864,102.13,102.09,52.11575176]
[1645008562335,24.436864,102.13,102.09,14.6895]
[1645008563339,65.30577417,102.13,102.09,14.6895]
[1645008571163,65.30577417,102.13,102.09,112.0195]
[1645008574671,41.05837417,102.13,102.09,112.0195]
[1645008574869,41.05837417,102.13,102.09,114.18633426]
[1645008576771,0.189464,102.13,102.09,114.18633426]
[1645008578876,0.009464,102.13,102.11,97.33]
[1645008579082,0.009464,102.13,102.12,115.04449997]
[1645008579276,0.009464,102.13,102.12,140.85883423]
[1645008579777,0.009464,102.13,102.12,179.83937928]
[1645008582477,0.009464,102.13,102.12,193.99937928]
[1645008583280,0.009464,102.13,102.12,96.66937928]
[1645008583881,0.009464,102.13,102.12,193.99937928]
[1645008584683,0.369464,102.13,102.12,193.99937928]
[1645008584882,0.009464,102.13,102.12,193.99937928]
[1645008590411,0.009464,102.13,102.12,96.66937928]
[1645008590809,0.3458698,102.15,102.12,96.66937928]
[1645008596310,0.3458698,102.15,102.12,193.99937928]
[1645008596512,0.3458698,102.15,102.13,2.16683426]
[1645008596712,0.3458698,102.15,102.14,14.6828]
[1645008597112,0.3458698,102.15,102.14,17.71499997]
[1645008601416,0.3458698,102.15,102.14,3.03219997]
[1645008601616,0.3458698,102.15,102.13,14.6861]
[1645008601617,0.3458698,102.15,102.07,33.6674017]
[1645008601928,7.3958698,102.15,102.08,23.7828]
[1645008602019,7.3958698,102.15,102.08,25.94957236]
[1645008602216,52.67812339,102.15,102.09,47.78408167]
[1645008602617,52.67812339,102.15,102.09,62.47318167]
[1645008605519,67.36732339,102.15,102.09,62.47318167]
[1645008605723,67.36732339,102.15,102.09,14.6891]
[1645008606427,52.67812339,102.15,102.09,14.6891]
[1645008607931,67.36772339,102.15,102.09,14.6891]
[1645008612631,72.26372339,102.15,102.09,14.6891]
[1645008613035,65.21372339,102.15,102.09,14.6891]
[1645008613534,60.31772339,102.15,102.09,14.6891]
[1645008614136,0.3458698,102.15,102.09,114.18587236]
[1645008614336,0.3458698,102.15,102.09,144.71423885]
[1645008614536,0.3458698,102.15,102.09,154.62584911]
[1645008614932,0.3458698,102.15,102.09,170.03122369]
[1645008615143,0.3458698,102.15,102.11,97.33]
[1645008615339,0.3458698,102.15,102.12,169.75795981]
[1645008615540,0.3458698,102.15,102.12,171.92473217]
[1645008615740,0.3458698,102.15,102.13,3.03219997]
[1645008616464,0.3458698,102.15,102.14,14.6819]
[1645008619865,0.26065592,102.15,102.14,112.0119]
[1645008620069,49.27334251,102.21,102.15,112.0]
[1645008620267,49.27334251,102.21,102.16,14.6791]
[1645008620467,47.90956448,102.21,102.16,14.6791]
[1645008620966,90.75263845,102.21,102.16,57.11896269]
[1645008622667,89.38886042,102.21,102.16,57.11896269]
[1645008623366,89.38886042,102.21,102.16,14.6791]
[1645008634989,89.38886042,102.21,102.14,24.8286]
[1645008635187,89.38886042,102.21,102.15,14.6809]
[1645008635386,94.28186042,102.21,102.15,14.6809]
[1645008636587,89.38886042,102.21,102.15,14.6809]
[1645008637787,90.75263845,102.21,102.15,14.6809]
[1645008637992,105.43373845,102.21,102.15,14.6809]
[1645008638690,104.06996042,102.21,102.15,14.6809]
[1645008642296,89.38886042,102.21,102.15,14.6809]
[1645008642730,90.75263845,102.21,102.15,14.6809]
[1645008646600,1.61364251,102.21,102.15,112.0109]
[1645008646802,1.61364251,102.21,102.15,114.17767222]
[1645008647102,0.24986448,102.21,102.18,14.6736]
[1645008647303,0.24986448,102.21,102.19,3.03219997]
[1645008647705,0.24986448,102.21,102.19,50.97140263]
[1645008648411,0.00986448,102.21,102.2,14.6731]
[1645008650409,0.00608416,102.22,102.2,14.6731]
[1645008650606,0.00608416,102.22,102.21,3.03219997]
[1645008650806,0.00608416,102.22,102.21,17.70379997]
[1645008654214,0.00608416,102.22,102.21,14.6716]
[1645008654916,0.00608416,102.22,102.21,17.70379997]
[1645008655714,0.00608416,102.22,102.21,63.28486329]
[1645008656414,0.4751821,102.23,102.21,63.28486329]
[1645008657515,1.13974622,102.24,102.22,222.49617735]
[1645008657739,1.13974622,102.24,102.23,17.69939997]
[1645008657943,0.00974622,102.24,102.23,17.69939997]
[1645008658140,0.50877662,102.24,102.23,17.69939997]
[1645008658942,0.00877662,102.24,102.23,17.69939997]
[1645008663247,0.00877662,102.24,102.23,3.03219997]
[1645008663443,0.00877662,102.24,102.22,14.6718]
[1645008663644,0.00877662,102.24,102.17,14.16]
[1645008663843,0.00877662,102.24,102.18,24.8172]
[1645008664048,0.00877662,102.24,102.18,26.98337735]
[1645008664245,0.00877662,102.24,102.19,48.9073]
[1645008664445,44.13128176,102.25,102.19,48.9073]
[1645008664856,44.13128176,102.25,102.18,67.87084192]
[1645008665046,44.38913817,102.23,102.18,67.87084192]
[1645008665245,44.38913817,102.23,102.18,65.70466457]
[1645008665445,44.38913817,102.23,102.19,14.6748]
[1645008665847,22.7303,102.24,102.19,14.6748]
[1645008666244,22.7303,102.24,102.19,16.84097735]
[1645008666646,22.7303,102.24,102.19,14.6748]
[1645008666846,38.03891383,102.23,102.19,14.6748]
[1645008672459,37.53891383,102.23,102.19,14.6748]
[1645008673465,37.53891383,102.23,102.19,53.53165659]
[1645008673664,22.7303,102.24,102.19,53.53165659]
[1645008674666,47.78521545,102.23,102.19,53.53165659]
[1645008674868,47.78521545,102.23,102.19,14.6748]
[1645008688304,153.40121545,102.23,102.17,14.6796]
[1645008688503,4.892,102.22,102.12,25.7497384]
[1645008688701,30.89447803,102.22,102.13,2.16617735]
[1645008689115,37.19419335,102.21,102.14,44.66093404]
[1645008689304,37.19419335,102.21,102.15,14.6817]
[1645008689502,37.19419335,102.21,102.16,42.78424204]
[1645008690609,37.19419335,102.21,102.15,23.1206]
[1645008691410,37.19419335,102.21,102.16,14.6808]
[1645008693309,51.87519335,102.21,102.16,14.6808]
[1645008695013,37.19419335,102.21,102.16,14.6808]
[1645008696309,37.19419335,102.21,102.15,119.72996997]
[1645008696310,37.19419335,102.21,102.18,14.6778]
[1645008699216,24.6387,102.22,102.18,14.6778]
[1645008700220,73.03294225,102.22,102.18,14.6778]
[1645008700815,73.03294225,102.22,102.17,14.6793]
[1645008701017,92.60464225,102.22,102.17,14.6793]
[1645008701215,87.71264225,102.22,102.17,14.6793]
[1645008701416,73.03294225,102.22,102.17,14.6793]
[1645008702216,73.03294225,102.22,102.18,37.66955807]
[1645008702417,24.6387,102.22,102.18,52.34735807]
[1645008703417,66.56776518,102.22,102.18,52.34735807]
[1645008704620,24.6387,102.22,102.18,52.34735807]
[1645008705220,24.6387,102.22,102.18,14.6778]
[1645008706323,39.46801684,102.21,102.18,14.6778]
[1645008707127,24.6387,102.22,102.18,14.6778]
[1645008707325,24.6387,102.22,102.19,3.03219997]
[1645008708426,1.36377803,102.25,102.2,2.15657633]
[1645008708625,1.1575816,102.26,102.2,123.65507633]
[1645008708828,1.1575816,102.26,102.2,26.32507633]
[1645008709325,1.1575816,102.26,102.21,57.94592289]
[1645008712426,46.18413997,102.25,102.21,14.6702]
[1645008714932,46.18413997,102.25,102.2,14.6765]
[1645008716135,69.03793997,102.25,102.2,14.6765]
[1645008723971,166.36793997,102.25,102.2,14.6765]
[1645008725670,69.03793997,102.25,102.2,14.6765]
[1645008726573,69.03793997,102.25,102.21,41.97594495]
[1645008726772,69.03793997,102.25,102.22,14.6725]
[1645008726971,69.03793997,102.25,102.23,3.03219997]
[1645008727474,1.1575816,102.26,102.23,3.03219997]
[1645008727872,1.1575816,102.26,102.23,17.70449997]
[1645008728575,1.1575816,102.26,102.23,19.8610763]
[1645008728773,1.1575816,102.26,102.23,17.70449997]
[1645008729774,1.1575816,102.26,102.23,40.22729997]
[1645008730175,1.1575816,102.26,102.24,45.38722699]
[1645008730376,1.1575816,102.26,102.25,14.6656]
[1645008730580,1.1575816,102.26,102.25,17.69779997]
[1645008731790,0.0075816,102.26,102.25,17.69779997]
[1645008731991,0.00762378,102.28,102.26,144.64208]
[1645008732189,0.43124738,102.28,102.27,14.6615]
[1645008732493,0.0613606,102.29,102.26,193.51358]
[1645008732494,0.00921424,102.29,102.28,16.0]
[1645008732688,0.00921424,102.29,102.28,19.03219997]
[1645008733091,0.00921424,102.29,102.28,54.70174517]
[1645008733492,0.00921424,102.29,102.28,71.5185215]
[1645008734591,0.00921424,102.29,102.28,168.8485215]
[1645008734789,0.00921424,102.29,102.28,71.5185215]
[1645008738117,0.00622816,102.29,102.28,71.5185215]
[1645008738319,0.00622816,102.29,102.28,35.8489763]
[1645008740024,0.00622816,102.29,102.28,79.38395181]
[1645008740224,0.00622816,102.29,102.28,93.54395181]
[1645008740425,0.00622816,102.29,102.28,190.87395181]
[1645008741326,0.00622816,102.29,102.28,93.54395181]
[1645008742529,0.00622816,102.29,102.28,190.87395181]
[1645008742729,0.0025858,102.31,102.3,15.0]
[1645008742927,0.0025858,102.31,102.3,29.6557]
[1645008743128,0.0025858,102.31,102.3,32.68789997]
[1645008743428,0.0025858,102.31,102.3,91.93268733]
[1645008744733,0.0025858,102.31,102.3,46.84789997]
[1645008745228,0.0025858,102.31,102.3,32.68789997]
[1645008748129,0.0025858,102.31,102.3,70.18087162]
[1645008748330,0.35545652,102.31,102.3,70.18087162]
[1645008752952,0.00545652,102.31,102.3,70.18087162]
[1645008753948,0.00160174,102.33,102.3,169.66744795]
[1645008754951,0.00160174,102.33,102.3,72.33744795]
[1645008755150,0.00160174,102.33,102.3,70.18087162]
[1645008755955,0.00160174,102.33,102.3,72.33744795]
[1645008757056,0.00160174,102.33,102.3,169.66744795]
[1645008759352,0.0947555,102.34,102.3,169.66744795]
[1645008760255,0.0947555,102.34,102.3,72.33744795]
[1645008765362,0.0947555,102.34,102.3,34.8444763]
[1645008765958,0.0947555,102.34,102.3,32.68789997]
[1645008766358,0.0947555,102.34,102.32,14.6543]
[1645008766359,0.0047555,102.34,102.32,14.6543]
[1645008766859,0.0047555,102.34,102.31,97.42342267]
[1645008766860,0.0047555,102.34,102.33,2.15657633]
[1645008767258,0.0047555,102.34,102.31,2.15657633]
[1645008767458,0.0047555,102.34,102.32,14.6571]
[1645008768661,0.0047555,102.34,102.33,3.03219997]
[1645008768859,0.0047555,102.34,102.33,17.68939997]
[1645008769072,0.0047555,102.34,102.33,14.6572]
[1645008770291,46.45772259,102.34,102.33,14.6572]
[1645008771589,46.63772259,102.34,102.33,14.6572]
[1645008772592,46.63772259,102.34,102.3,122.12849204]
[1645008772892,46.63772259,102.34,102.32,14.6582]
[1645008773594,0.1847555,102.34,102.33,3.03219997]
[1645008773792,0.1847555,102.34,102.33,17.68959997]
[1645008774594,0.1847555,102.34,102.33,14.6574]
[1645008775794,0.1847555,102.34,102.33,17.68959997]
[1645008777796,0.1847555,102.34,102.33,14.6574]
[1645008778197,0.1847555,102.34,102.33,17.68959997]
[1645008778500,48.71945145,102.34,102.33,3.03219997]
[1645008778698,48.71945145,102.34,102.3,15.0]
[1645008779898,48.71945145,102.34,102.31,14.6595]
[1645008780100,48.71945145,102.34,102.32,3.03219997]
[1645008780300,48.71945145,102.34,102.31,14.6595]
[1645008781503,0.1847555,102.34,102.32,3.03219997]
[1645008781704,0.1847555,102.34,102.33,14.6565]
[1645008783304,0.1847555,102.34,102.33,17.36540482]
[1645008791413,43.01429735,102.34,102.33,17.36540482]
[1645008794518,0.1847555,102.34,102.33,17.36540482]
[1645008794915,0.1847555,102.34,102.33,20.39760479]
[1645008797544,0.1847555,102.34,102.33,17.36540482]
[1645008798441,0.1847555,102.34,102.33,20.39760479]
[1645008802050,0.0047555,102.34,102.33,20.39760479]
[1645008802448,0.0047555,102.34,102.33,22.55411905]
[1645008805754,48.2209,102.38,102.33,22.55411905]
[1645008805755,17.80630797,102.51,102.38,2.15651426]
[1645008805955,0.55339202,102.58,102.46,97.33]
[1645008806155,0.1043135,102.55,102.54,176.95]
[1645008806355,0.00286876,102.64,102.56,130.0]
[1645008806555,0.00286876,102.64,102.58,0.55339202]
[1645008806757,0.00286876,102.64,102.63,176.95]
[1645008806758,0.00586876,102.64,102.63,176.95]
[1645008806954,0.00120356,102.65,102.64,93.0]
[1645008807154,2.69729208,102.64,102.62,13.2375338]
[1645008807357,3.326474,102.64,102.62,13.2375338]
[1645008807553,3.326474,102.64,102.57,13.2375338]
[1645008807754,3.326474,102.64,102.59,176.95]
[1645008807956,3.326474,102.64,102.6,191.11]
[1645008808156,0.6398704,102.65,102.64,101.0]
[1645008808357,0.6398704,102.65,102.64,14.16]
[1645008808358,1.7547184,102.65,102.64,14.16]
[1645008808757,1.7547184,102.65,102.62,14.16]
[1645008808955,1.7547184,102.65,102.59,14.16]
[1645008809363,1.7547184,102.65,102.59,16.86890482]
[1645008809658,44.29864379,102.64,102.59,2.70890482]
[1645008809859,44.63610707,102.64,102.59,2.70890482]
[1645008810457,128.0,102.63,102.57,14.16]
[1645008810658,48.50450892,102.62,102.57,14.16]
[1645008810858,49.9568202,102.62,102.57,14.16]
[1645008811059,49.9568202,102.62,102.54,14.16]
[1645008811258,49.9568202,102.62,102.54,6.0]
[1645008811464,49.9568202,102.62,102.55,14.16]
[1645008812464,147.2868202,102.62,102.51,2.15651426]
[1645008812662,155.2978202,102.62,102.51,2.15651426]
[1645008812860,155.2978202,102.62,102.5,38.5435]
[1645008813260,155.2978202,102.62,102.51,45.47022477]
[1645008813460,57.9678202,102.62,102.51,45.47022477]
[1645008813660,49.9568202,102.62,102.51,45.47022477]
[1645008814164,49.9568202,102.62,102.51,59.63022477]
[1645008815663,49.9568202,102.62,102.51,14.16]
[1645008816066,97.33,102.61,102.51,14.16]
[1645008816462,39.0438291,102.6,102.51,14.16]
[1645008816765,136.3738291,102.6,102.51,14.16]
[1645008816963,137.4886771,102.6,102.51,14.16]
[1645008821469,40.1586771,102.6,102.53,97.33]
[1645008821668,40.1586771,102.6,102.54,14.16]
[1645008821871,40.1586771,102.6,102.54,16.31651426]
[1645008822268,40.1586771,102.6,102.55,2.15651426]
[1645008822669,40.1586771,102.6,102.53,19.28697683]
[1645008822670,40.1586771,102.6,102.53,14.16]
[1645008824494,143.0526771,102.6,102.51,14.16]
[1645008824692,143.0526771,102.6,102.47,14.16]
[1645008824893,143.0526771,102.6,102.49,10.0]
[1645008825095,143.0526771,102.6,102.47,54.25414024]
[1645008828299,143.0526771,102.6,102.48,14.6289]
[1645008828498,143.0526771,102.6,102.49,54.52874979]
[1645008828697,143.0526771,102.6,102.5,4.875]
[1645008828896,143.0526771,102.6,102.5,19.035]
[1645008829498,143.0526771,102.6,102.51,43.13187387]
[1645008829697,45.7226771,102.6,102.51,43.13187387]
[1645008829897,40.1586771,102.6,102.51,43.13187387]
[1645008830297,40.1586771,102.6,102.5,33.6615]
[1645008831200,40.1586771,102.6,102.51,47.37913038]
[1645008831402,40.1586771,102.6,102.52,4.875]
[1645008832901,137.4886771,102.6,102.51,14.16]
[1645008833706,40.1586771,102.6,102.51,14.16]
[1645008834302,40.1586771,102.6,102.51,28.7851]
[1645008834502,40.1586771,102.6,102.52,45.08457868]
[1645008834705,40.1586771,102.6,102.51,28.7851]
[1645008835701,40.1586771,102.6,102.52,35.87704631]
[1645008835902,40.1586771,102.6,102.52,55.37604631]
[1645008836106,40.1586771,102.6,102.53,14.16]
[1645008836304,40.1586771,102.6,102.54,46.02025262]
[1645008837304,40.1586771,102.6,102.53,14.16]
[1645008837805,40.1586771,102.6,102.53,28.7833]
[1645008838007,40.1586771,102.6,102.54,4.874]
[1645008841711,137.4886771,102.6,102.53,14.6233]
[1645008841911,137.4886771,102.6,102.51,28.7871]
[1645008843612,137.4886771,102.6,102.51,14.6271]
[1645008844512,137.4886771,102.6,102.51,55.53820157]
[1645008845113,137.4886771,102.6,102.51,14.6271]
[1645008852222,137.4886771,102.6,102.51,61.46034965]
[1645008853221,137.4886771,102.6,102.51,14.6271]
[1645008862261,139.92093667,102.6,102.49,519.00399883]
[1645008862663,97.33,102.58,102.49,519.00399883]
[1645008863166,134.75917594,102.55,102.49,519.00399883]
[1645008863861,37.42917594,102.55,102.49,519.00399883]
[1645008864367,135.87402394,102.55,102.49,519.00399883]
[1645008879707,38.54402394,102.55,102.49,519.00399883]
[1645008880310,97.33,102.54,102.49,519.00399883]
[1645008880509,98.027594,102.54,102.49,504.37159883]
[1645008881312,97.33,102.52,102.49,504.37159883]
[1645008881511,46.18477606,102.51,102.49,504.37159883]
[1645008882516,46.5155335,102.51,102.49,504.37159883]
[1645008882711,46.5155335,102.51,102.47,14.6371]
[1645008882911,143.8455335,102.51,102.46,14.6386]
[1645008883212,46.5155335,102.51,102.46,14.6386]